[Event "Late-Titled-Tuesday-Blitz-February-20-2024"]
[Site "Chess.com"]
[Date "2024.02.20"]
[Round "11"]
[White "aistrel"]
[Black "Polstastisch"]
[Result "1-0"]
[WhiteElo "2554"]
[BlackElo "2412"]
[TimeControl "180+1"]
[EndTime "16:04:26 PST"]
[Termination "aistrel won by checkmate"]

1. d4 {[%clk 0:03:00.9]} 1... Nf6 {[%clk 0:02:51.8]} 2. Nc3 {[%clk 0:02:59.1]}
2... d5 {[%clk 0:02:51.6]} 3. Bf4 {[%clk 0:02:58.1]} 3... c5 {[%clk 0:02:37.9]}
4. e3 {[%clk 0:02:57.5]} 4... cxd4 {[%clk 0:02:38]} 5. exd4 {[%clk 0:02:58.4]}
5... Bg4 {[%clk 0:02:38.1]} 6. Be2 {[%clk 0:02:58.8]} 6... Bxe2 {[%clk
0:02:36.4]} 7. Qxe2 {[%clk 0:02:59.7]} 7... Nc6 {[%clk 0:02:36.9]} 8. Nb5 {[%clk
0:03:00]} 8... Rc8 {[%clk 0:02:36.1]} 9. Nd6+ {[%clk 0:03:00]} 9... Kd7 {[%clk
0:02:02.9]} 10. Nxc8 {[%clk 0:03:00.9]} 10... Kxc8 {[%clk 0:02:02.7]} 11. Nf3
{[%clk 0:02:58.2]} 11... Qb6 {[%clk 0:01:58.7]} 12. c3 {[%clk 0:02:51.2]} 12...
Ne4 {[%clk 0:01:48.5]} 13. Ne5 {[%clk 0:02:38.1]} 13... Nxe5 {[%clk 0:01:42.5]}
14. Bxe5 {[%clk 0:02:39]} 14... Qg6 {[%clk 0:01:31.9]} 15. O-O {[%clk
0:02:36.2]} 15... h5 {[%clk 0:01:20.5]} 16. f3 {[%clk 0:02:19]} 16... Nd6 {[%clk
0:01:17]} 17. Bxd6 {[%clk 0:02:12.6]} 17... Qxd6 {[%clk 0:01:17.9]} 18. Qb5
{[%clk 0:02:08.1]} 18... e6 {[%clk 0:01:10.3]} 19. Qe8+ {[%clk 0:02:07.5]} 19...
Qd8 {[%clk 0:01:05.1]} 20. Qxf7 {[%clk 0:02:06.4]} 20... Bd6 {[%clk 0:01:04.9]}
21. Qxe6+ {[%clk 0:02:03.1]} 21... Kb8 {[%clk 0:01:05.2]} 22. Rae1 {[%clk
0:02:00]} 22... h4 {[%clk 0:01:03.5]} 23. f4 {[%clk 0:01:58]} 23... g5 {[%clk
0:01:02.3]} 24. f5 {[%clk 0:01:52.4]} 24... g4 {[%clk 0:00:50.5]} 25. f6 {[%clk
0:01:51.9]} 25... Bg3 {[%clk 0:00:45]} 26. hxg3 {[%clk 0:01:45.1]} 26... hxg3
{[%clk 0:00:44.6]} 27. Qe5+ {[%clk 0:01:42.5]} 27... Ka8 {[%clk 0:00:39.1]} 28.
Qxg3 {[%clk 0:01:42.3]} 28... a6 {[%clk 0:00:28.7]} 29. f7 {[%clk 0:01:41.2]}
29... Rf8 {[%clk 0:00:18.5]} 30. Qxg4 {[%clk 0:01:39.3]} 30... a5 {[%clk
0:00:14.6]} 31. Qg7 {[%clk 0:01:38.1]} 31... a4 {[%clk 0:00:13.8]} 32. Qxf8
{[%clk 0:01:37.9]} 32... Qxf8 {[%clk 0:00:13.7]} 33. Re8+ {[%clk 0:01:37.4]}
33... Ka7 {[%clk 0:00:13.3]} 34. Rxf8 {[%clk 0:01:37.2]} 34... a3 {[%clk
0:00:13.9]} 35. b3 {[%clk 0:01:36]} 35... b5 {[%clk 0:00:14.1]} 36. Rf6 {[%clk
0:01:33.8]} 36... b4 {[%clk 0:00:13.6]} 37. cxb4 {[%clk 0:01:33.4]} 37... Kb7
{[%clk 0:00:13.3]} 38. Rd8 {[%clk 0:01:33.1]} 38... Kc7 {[%clk 0:00:13.5]} 39.
Rxd5 {[%clk 0:01:33.5]} 39... Kb7 {[%clk 0:00:14.4]} 40. g4 {[%clk 0:01:33.4]}
40... Kc7 {[%clk 0:00:14.7]} 41. g5 {[%clk 0:01:34.3]} 41... Kb7 {[%clk
0:00:15.5]} 42. g6 {[%clk 0:01:35.2]} 42... Kc7 {[%clk 0:00:16.4]} 43. Kf2
{[%clk 0:01:33.9]} 43... Kb7 {[%clk 0:00:17.3]} 44. Kf3 {[%clk 0:01:34.8]} 44...
Kc7 {[%clk 0:00:18.2]} 45. Kf4 {[%clk 0:01:35.7]} 45... Kb7 {[%clk 0:00:19.1]}
46. Ke5 {[%clk 0:01:36.6]} 46... Kc7 {[%clk 0:00:20]} 47. Ra5 {[%clk 0:01:37]}
47... Kb7 {[%clk 0:00:20.9]} 48. Rxa3 {[%clk 0:01:37.6]} 48... Kc7 {[%clk
0:00:21.8]} 49. Raa6 {[%clk 0:01:37.5]} 49... Kb7 {[%clk 0:00:22.7]} 50. Rac6
{[%clk 0:01:37]} 50... Ka7 {[%clk 0:00:22.3]} 51. b5 {[%clk 0:01:37.9]} 51...
Kb7 {[%clk 0:00:23.2]} 52. b4 {[%clk 0:01:38.8]} 52... Ka7 {[%clk 0:00:24.1]}
53. a4 {[%clk 0:01:39.7]} 53... Kb7 {[%clk 0:00:25]} 54. a5 {[%clk 0:01:40.6]}
54... Ka7 {[%clk 0:00:25.9]} 55. Rc7+ {[%clk 0:01:38]} 55... Kb8 {[%clk
0:00:25.9]} 56. b6 {[%clk 0:01:37.5]} 56... Ka8 {[%clk 0:00:26.8]} 57. a6 {[%clk
0:01:38.2]} 57... Kb8 {[%clk 0:00:27.7]} 58. b5 {[%clk 0:01:38.6]} 58... Ka8
{[%clk 0:00:28.6]} 59. d5 {[%clk 0:01:39.1]} 59... Kb8 {[%clk 0:00:29.5]} 60. g7
{[%clk 0:01:39.6]} 60... Ka8 {[%clk 0:00:30.4]} 61. Ke6 {[%clk 0:01:40]} 61...
Kb8 {[%clk 0:00:31.3]} 62. Ke7 {[%clk 0:01:40.9]} 62... Ka8 {[%clk 0:00:32.2]}
63. Ke8 {[%clk 0:01:40.7]} 63... Kb8 {[%clk 0:00:33.1]} 64. g8=Q {[%clk
0:01:37.1]} 64... Ka8 {[%clk 0:00:34]} 65. f8=R {[%clk 0:01:33.7]} 65... Kb8
{[%clk 0:00:34.9]} 66. d6 {[%clk 0:01:32.6]} 66... Ka8 {[%clk 0:00:35.8]} 67. d7
{[%clk 0:01:32.8]} 67... Kb8 {[%clk 0:00:36.7]} 68. d8=R# {[%clk 0:01:29.5]} 1-0

[Event "Late-Titled-Tuesday-Blitz-February-20-2024"]
[Site "Chess.com"]
[Date "2024.02.20"]
[Round "11"]
[White "Felix-Rose"]
[Black "kylelancman"]
[Result "0-1"]
[WhiteElo "2269"]
[BlackElo "2448"]
[TimeControl "180+1"]
[EndTime "16:04:26 PST"]
[Termination "kylelancman won by resignation"]

1. e4 {[%clk 0:03:00.2]} 1... c5 {[%clk 0:02:57.1]} 2. Nf3 {[%clk 0:02:59.9]}
2... g6 {[%clk 0:02:56.9]} 3. d4 {[%clk 0:02:59.3]} 3... cxd4 {[%clk 0:02:57.8]}
4. Nxd4 {[%clk 0:02:58.4]} 4... Nc6 {[%clk 0:02:56.6]} 5. c4 {[%clk 0:02:58.5]}
5... Nf6 {[%clk 0:02:55.4]} 6. Nc3 {[%clk 0:02:58.4]} 6... d6 {[%clk 0:02:54.5]}
7. f3 {[%clk 0:02:58.9]} 7... Nxd4 {[%clk 0:02:53]} 8. Qxd4 {[%clk 0:02:59.8]}
8... Bg7 {[%clk 0:02:52.6]} 9. Be3 {[%clk 0:03:00.2]} 9... O-O {[%clk
0:02:52.7]} 10. Qd2 {[%clk 0:03:00.5]} 10... a5 {[%clk 0:02:51.8]} 11. Be2
{[%clk 0:02:52.3]} 11... a4 {[%clk 0:02:51.5]} 12. O-O {[%clk 0:02:42.8]} 12...
Qa5 {[%clk 0:02:50.4]} 13. Rab1 {[%clk 0:02:37.9]} 13... Be6 {[%clk 0:02:48]}
14. Rfd1 {[%clk 0:02:36.2]} 14... Rfc8 {[%clk 0:02:45.1]} 15. b4 {[%clk
0:02:31.4]} 15... axb3 {[%clk 0:02:44.2]} 16. axb3 {[%clk 0:02:31.6]} 16... Qb4
{[%clk 0:02:38.2]} 17. Qe1 {[%clk 0:02:16.6]} 17... Ra3 {[%clk 0:02:17.1]} 18.
Nb5 {[%clk 0:02:07.8]} 18... Qxe1+ {[%clk 0:02:12.2]} 19. Rxe1 {[%clk
0:02:06.5]} 19... Ra2 {[%clk 0:02:03.2]} 20. Bd4 {[%clk 0:01:49.1]} 20... Bd7
{[%clk 0:01:56.1]} 21. Nc3 {[%clk 0:01:45.2]} 21... Ra3 {[%clk 0:01:48.1]} 22.
Be3 {[%clk 0:01:16.8]} 22... Ng4 {[%clk 0:01:39.2]} 23. fxg4 {[%clk 0:01:08.3]}
23... Bxc3 {[%clk 0:01:38.2]} 24. Bc1 {[%clk 0:00:53.6]} 24... Ra2 {[%clk
0:01:33.1]} 25. Kf1 {[%clk 0:00:42.6]} 25... Bxe1 {[%clk 0:01:31]} 26. Kxe1
{[%clk 0:00:42.5]} 26... Rca8 {[%clk 0:01:30.6]} 27. Bb2 {[%clk 0:00:42]} 27...
Bc6 {[%clk 0:01:25.1]} 28. Bd3 {[%clk 0:00:38.5]} 28... f6 {[%clk 0:01:20.5]}
29. h3 {[%clk 0:00:37.9]} 29... Kf7 {[%clk 0:01:19.2]} 30. Kd2 {[%clk
0:00:35.6]} 30... Rb8 {[%clk 0:01:18.7]} 31. Kc3 {[%clk 0:00:34.4]} 31... b5
{[%clk 0:01:16.7]} 32. Rh1 {[%clk 0:00:27.1]} 32... Kg7 {[%clk 0:01:04]} 33. h4
{[%clk 0:00:23.3]} 33... bxc4 {[%clk 0:01:01.4]} 34. Bxc4 {[%clk 0:00:23.1]}
34... Bxe4 {[%clk 0:01:00.7]} 35. h5 {[%clk 0:00:21.5]} 35... d5 {[%clk
0:00:58.2]} 36. h6+ {[%clk 0:00:19]} 36... Kf8 {[%clk 0:00:53.8]} 37. Re1 {[%clk
0:00:19.3]} 37... dxc4 {[%clk 0:00:52.5]} 38. Rxe4 {[%clk 0:00:19.8]} 38...
Rxb3+ {[%clk 0:00:51.6]} 39. Kxc4 {[%clk 0:00:19.5]} 39... Raxb2 {[%clk
0:00:50.3]} 0-1

[Event "Late-Titled-Tuesday-Blitz-February-20-2024"]
[Site "Chess.com"]
[Date "2024.02.20"]
[Round "11"]
[White "ural58"]
[Black "Godzillator"]
[Result "0-1"]
[WhiteElo "2452"]
[BlackElo "2332"]
[TimeControl "180+1"]
[EndTime "16:04:35 PST"]
[Termination "Godzillator won by checkmate"]

1. e4 {[%clk 0:03:00.9]} 1... d5 {[%clk 0:02:59.4]} 2. exd5 {[%clk 0:03:00.1]}
2... Qxd5 {[%clk 0:02:59.6]} 3. Nc3 {[%clk 0:02:58.9]} 3... Qd6 {[%clk
0:02:59.8]} 4. d4 {[%clk 0:02:58.5]} 4... c6 {[%clk 0:03:00]} 5. Bc4 {[%clk
0:02:23]} 5... Nf6 {[%clk 0:02:59]} 6. Nge2 {[%clk 0:02:20.9]} 6... Bg4 {[%clk
0:02:58.4]} 7. f3 {[%clk 0:02:20.3]} 7... Bh5 {[%clk 0:02:58.4]} 8. Bf4 {[%clk
0:02:20]} 8... Qd8 {[%clk 0:02:54]} 9. g4 {[%clk 0:02:19.7]} 9... Bg6 {[%clk
0:02:53.7]} 10. h4 {[%clk 0:02:19.8]} 10... h5 {[%clk 0:02:53.6]} 11. g5 {[%clk
0:02:19.7]} 11... Nd5 {[%clk 0:02:53.7]} 12. Bxb8 {[%clk 0:02:16]} 12... Nxc3
{[%clk 0:02:46.3]} 13. bxc3 {[%clk 0:02:13.3]} 13... Qxb8 {[%clk 0:02:44]} 14.
Rb1 {[%clk 0:02:09.4]} 14... e6 {[%clk 0:02:37.4]} 15. Qd2 {[%clk 0:02:08.7]}
15... Bd6 {[%clk 0:02:35.3]} 16. Kf2 {[%clk 0:02:05.5]} 16... O-O {[%clk
0:02:32.3]} 17. Rb3 {[%clk 0:02:02.9]} 17... b5 {[%clk 0:02:31.9]} 18. Bd3
{[%clk 0:02:02.6]} 18... Bxd3 {[%clk 0:02:30.8]} 19. cxd3 {[%clk 0:02:02.3]}
19... g6 {[%clk 0:02:30.3]} 20. a4 {[%clk 0:02:01]} 20... a6 {[%clk 0:02:30.2]}
21. c4 {[%clk 0:01:56.3]} 21... Qa7 {[%clk 0:02:25.2]} 22. axb5 {[%clk
0:01:45.8]} 22... axb5 {[%clk 0:02:24.2]} 23. cxb5 {[%clk 0:01:46]} 23... cxb5
{[%clk 0:02:24.4]} 24. Rxb5 {[%clk 0:01:45.9]} 24... Rfd8 {[%clk 0:02:16.6]} 25.
Rhb1 {[%clk 0:01:44.3]} 25... Rd7 {[%clk 0:02:14.8]} 26. Qe3 {[%clk 0:01:21.4]}
26... Rad8 {[%clk 0:01:48.4]} 27. Qe4 {[%clk 0:01:18.2]} 27... Bb8 {[%clk
0:01:34.1]} 28. Rb7 {[%clk 0:01:15.2]} 28... Rxb7 {[%clk 0:01:25.7]} 29. Rxb7
{[%clk 0:01:11.2]} 29... Qa3 {[%clk 0:01:18.6]} 30. Ke3 {[%clk 0:00:40.8]} 30...
Ba7 {[%clk 0:00:57.4]} 31. Qf4 {[%clk 0:00:36]} 31... Bxd4+ {[%clk 0:00:44.8]}
32. Ke4 {[%clk 0:00:20.6]} 32... Bf6 {[%clk 0:00:25.3]} 33. gxf6 {[%clk
0:00:19.5]} 33... Qxd3+ {[%clk 0:00:24.8]} 34. Ke5 {[%clk 0:00:18.5]} 34... Rd5#
{[%clk 0:00:24.2]} 0-1

[Event "Late-Titled-Tuesday-Blitz-February-20-2024"]
[Site "Chess.com"]
[Date "2024.02.20"]
[Round "11"]
[White "Doublekk14"]
[Black "rdarruda"]
[Result "0-1"]
[WhiteElo "2305"]
[BlackElo "2516"]
[TimeControl "180+1"]
[EndTime "16:04:40 PST"]
[Termination "rdarruda won on time"]

1. c4 {[%clk 0:02:46.1]} 1... Nf6 {[%clk 0:02:41.9]} 2. Nc3 {[%clk 0:02:43.6]}
2... e5 {[%clk 0:02:41.9]} 3. e3 {[%clk 0:02:43.1]} 3... Nc6 {[%clk 0:02:41.8]}
4. Nf3 {[%clk 0:02:42.9]} 4... Bb4 {[%clk 0:02:38.8]} 5. Qc2 {[%clk 0:02:42.6]}
5... O-O {[%clk 0:02:37.8]} 6. d3 {[%clk 0:02:40.4]} 6... d5 {[%clk 0:02:37.2]}
7. cxd5 {[%clk 0:02:40]} 7... Nxd5 {[%clk 0:02:38.1]} 8. Bd2 {[%clk 0:02:40.1]}
8... Be6 {[%clk 0:02:37.5]} 9. a3 {[%clk 0:02:39.4]} 9... Be7 {[%clk 0:02:34.2]}
10. Be2 {[%clk 0:02:39.4]} 10... f5 {[%clk 0:02:32.2]} 11. O-O {[%clk
0:02:33.8]} 11... Kh8 {[%clk 0:02:31]} 12. Nxd5 {[%clk 0:02:30.7]} 12... Qxd5
{[%clk 0:02:28.5]} 13. e4 {[%clk 0:02:06.2]} 13... Qd7 {[%clk 0:02:21.2]} 14. b4
{[%clk 0:02:00.7]} 14... a6 {[%clk 0:02:17.7]} 15. Bc3 {[%clk 0:01:52.6]} 15...
Bf6 {[%clk 0:02:13.4]} 16. a4 {[%clk 0:01:49.5]} 16... Nd4 {[%clk 0:02:09.6]}
17. Nxd4 {[%clk 0:01:21.3]} 17... exd4 {[%clk 0:02:10.5]} 18. Bd2 {[%clk
0:01:21.1]} 18... Rad8 {[%clk 0:02:06.2]} 19. exf5 {[%clk 0:01:13.4]} 19... Bxf5
{[%clk 0:02:07.1]} 20. Bf3 {[%clk 0:01:13.3]} 20... c6 {[%clk 0:02:06.4]} 21. b5
{[%clk 0:01:03.9]} 21... axb5 {[%clk 0:02:04.1]} 22. axb5 {[%clk 0:01:03.9]}
22... cxb5 {[%clk 0:01:55.3]} 23. Ra7 {[%clk 0:01:01.5]} 23... Qc8 {[%clk
0:01:54]} 24. Qb1 {[%clk 0:00:53.1]} 24... Bd7 {[%clk 0:01:33.5]} 25. Rc1 {[%clk
0:00:48]} 25... Bc6 {[%clk 0:01:30.3]} 26. Qb4 {[%clk 0:00:36]} 26... Qb8 {[%clk
0:01:27.7]} 27. Ra5 {[%clk 0:00:15]} 27... Be5 {[%clk 0:01:14]} 28. Bxc6 {[%clk
0:00:12.8]} 28... Bxh2+ {[%clk 0:01:13.1]} 29. Kf1 {[%clk 0:00:12.4]} 29... bxc6
{[%clk 0:01:06.1]} 30. Rxc6 {[%clk 0:00:12.1]} 30... Qe5 {[%clk 0:00:48.9]} 31.
Rxb5 {[%clk 0:00:07.4]} 31... Qg3 {[%clk 0:00:41.4]} 32. f3 {[%clk 0:00:04.4]}
32... Rxf3+ {[%clk 0:00:36.6]} 33. gxf3 {[%clk 0:00:03.4]} 33... Qxf3+ {[%clk
0:00:37.5]} 34. Ke1 {[%clk 0:00:03.3]} 34... Re8+ {[%clk 0:00:32.6]} 0-1

[Event "Late-Titled-Tuesday-Blitz-February-20-2024"]
[Site "Chess.com"]
[Date "2024.02.20"]
[Round "11"]
[White "BardArtem"]
[Black "Oleksandr_Bortnyk"]
[Result "0-1"]
[WhiteElo "2775"]
[BlackElo "3052"]
[TimeControl "180+1"]
[EndTime "16:04:48 PST"]
[Termination "Oleksandr_Bortnyk won on time"]

1. e4 {[%clk 0:02:56.4]} 1... g6 {[%clk 0:02:54]} 2. d4 {[%clk 0:02:55.5]} 2...
Bg7 {[%clk 0:02:52.8]} 3. Nc3 {[%clk 0:02:55.2]} 3... c6 {[%clk 0:02:51]} 4. Nf3
{[%clk 0:02:54.4]} 4... a6 {[%clk 0:02:46.7]} 5. h4 {[%clk 0:02:51.8]} 5... h6
{[%clk 0:02:44.8]} 6. e5 {[%clk 0:02:40.4]} 6... d5 {[%clk 0:02:40.8]} 7. Bd3
{[%clk 0:02:36.1]} 7... Bg4 {[%clk 0:02:40.1]} 8. Ne2 {[%clk 0:02:24]} 8... e6
{[%clk 0:02:36.7]} 9. Ng3 {[%clk 0:02:18.4]} 9... h5 {[%clk 0:02:35.3]} 10. c3
{[%clk 0:02:15.7]} 10... c5 {[%clk 0:02:33.1]} 11. dxc5 {[%clk 0:02:07.1]} 11...
Nd7 {[%clk 0:02:32.9]} 12. Be2 {[%clk 0:02:00.8]} 12... Nxc5 {[%clk 0:02:29]}
13. Ng5 {[%clk 0:01:57.5]} 13... Bxe5 {[%clk 0:02:20.5]} 14. Bxg4 {[%clk
0:01:52.6]} 14... hxg4 {[%clk 0:02:21.4]} 15. Qxg4 {[%clk 0:01:51.5]} 15... Nd3+
{[%clk 0:02:14]} 16. Ke2 {[%clk 0:01:45.9]} 16... Nxc1+ {[%clk 0:02:05.6]} 17.
Raxc1 {[%clk 0:01:46.8]} 17... Nf6 {[%clk 0:02:02.5]} 18. Qf3 {[%clk 0:01:42.7]}
18... Qb6 {[%clk 0:02:01]} 19. b3 {[%clk 0:01:30.6]} 19... Rc8 {[%clk
0:01:44.3]} 20. h5 {[%clk 0:01:18.7]} 20... Qb5+ {[%clk 0:01:44.5]} 21. c4
{[%clk 0:01:12.7]} 21... dxc4 {[%clk 0:01:40.4]} 22. a4 {[%clk 0:01:12.8]} 22...
Qb4 {[%clk 0:01:03.6]} 23. hxg6 {[%clk 0:01:09.6]} 23... Rxh1 {[%clk 0:01:04.5]}
24. Rxh1 {[%clk 0:00:58.4]} 24... cxb3 {[%clk 0:00:38.6]} 25. Rh8+ {[%clk
0:00:46.1]} 25... Kd7 {[%clk 0:00:34.6]} 26. Rxc8 {[%clk 0:00:26.6]} 26... Kxc8
{[%clk 0:00:35.5]} 27. gxf7 {[%clk 0:00:25.3]} 27... b2 {[%clk 0:00:34]} 28. Qd3
{[%clk 0:00:07.6]} 28... Nd7 {[%clk 0:00:22.5]} 29. Nxe6 {[%clk 0:00:04.8]}
29... Qg4+ {[%clk 0:00:15.5]} 30. Qf3 {[%clk 0:00:02.3]} 30... Qxf3+ {[%clk
0:00:14.7]} 0-1

[Event "Late-Titled-Tuesday-Blitz-February-20-2024"]
[Site "Chess.com"]
[Date "2024.02.20"]
[Round "11"]
[White "ridnani1"]
[Black "MaestroCheck"]
[Result "1-0"]
[WhiteElo "2416"]
[BlackElo "2531"]
[TimeControl "180+1"]
[EndTime "16:04:57 PST"]
[Termination "ridnani1 won by checkmate"]

1. e4 {[%clk 0:03:00.9]} 1... c5 {[%clk 0:02:59.1]} 2. Nf3 {[%clk 0:02:59.9]}
2... e6 {[%clk 0:02:56.9]} 3. b3 {[%clk 0:02:59.8]} 3... Nc6 {[%clk 0:02:55.9]}
4. Bb2 {[%clk 0:02:59.8]} 4... a6 {[%clk 0:02:56.5]} 5. g3 {[%clk 0:02:57.2]}
5... d5 {[%clk 0:02:52.2]} 6. exd5 {[%clk 0:02:54.3]} 6... exd5 {[%clk
0:02:52.6]} 7. Qe2+ {[%clk 0:02:53.2]} 7... Qe7 {[%clk 0:02:50.8]} 8. Qxe7+
{[%clk 0:02:52]} 8... Ngxe7 {[%clk 0:02:51.4]} 9. d4 {[%clk 0:02:46.7]} 9... Bg4
{[%clk 0:02:46.5]} 10. Nbd2 {[%clk 0:02:42.3]} 10... Nb4 {[%clk 0:02:44.1]} 11.
Kd1 {[%clk 0:02:23.9]} 11... cxd4 {[%clk 0:02:31.4]} 12. h3 {[%clk 0:02:14.6]}
12... Bh5 {[%clk 0:02:24.3]} 13. a3 {[%clk 0:02:11.5]} 13... Nbc6 {[%clk
0:02:20.7]} 14. g4 {[%clk 0:02:11.1]} 14... Bg6 {[%clk 0:02:14.7]} 15. Nxd4
{[%clk 0:02:11.4]} 15... Rc8 {[%clk 0:02:10.3]} 16. Nxc6 {[%clk 0:02:01.9]}
16... Nxc6 {[%clk 0:02:01.3]} 17. Bg2 {[%clk 0:01:56.8]} 17... d4 {[%clk
0:02:00]} 18. f4 {[%clk 0:01:53.3]} 18... f5 {[%clk 0:01:58.1]} 19. Nc4 {[%clk
0:01:38.2]} 19... Be7 {[%clk 0:01:41.2]} 20. Re1 {[%clk 0:01:32.1]} 20... Kf8
{[%clk 0:01:34.1]} 21. Re2 {[%clk 0:01:03.4]} 21... fxg4 {[%clk 0:01:26.7]} 22.
hxg4 {[%clk 0:01:04.3]} 22... d3 {[%clk 0:01:27.2]} 23. cxd3 {[%clk 0:00:59.1]}
23... Bxd3 {[%clk 0:01:28.1]} 24. Rd2 {[%clk 0:00:59.1]} 24... Bxc4 {[%clk
0:01:27.4]} 25. bxc4 {[%clk 0:00:59.4]} 25... Na5 {[%clk 0:01:22.1]} 26. Rd3
{[%clk 0:00:51.1]} 26... Nxc4 {[%clk 0:01:19.2]} 27. Bc3 {[%clk 0:00:51.1]}
27... Bf6 {[%clk 0:01:15.9]} 28. Bxb7 {[%clk 0:00:47.1]} 28... Rb8 {[%clk
0:01:08.2]} 29. Bxa6 {[%clk 0:00:46.9]} 29... Nb2+ {[%clk 0:01:02.5]} 30. Bxb2
{[%clk 0:00:46.7]} 30... Rxb2 {[%clk 0:01:03.1]} 31. Rc1 {[%clk 0:00:41.5]}
31... Kf7 {[%clk 0:00:58.8]} 32. Rd7+ {[%clk 0:00:28.7]} 32... Ke6 {[%clk
0:00:58.5]} 33. Rcc7 {[%clk 0:00:20.1]} 33... Rb1+ {[%clk 0:00:13.9]} 34. Kc2
{[%clk 0:00:16.7]} 34... Rb2+ {[%clk 0:00:14.1]} 35. Kd3 {[%clk 0:00:10.9]}
35... Rb3+ {[%clk 0:00:13.5]} 36. Ke4 {[%clk 0:00:10.9]} 36... Rc3 {[%clk
0:00:12.1]} 37. f5# {[%clk 0:00:08.5]} 1-0

[Event "Late-Titled-Tuesday-Blitz-February-20-2024"]
[Site "Chess.com"]
[Date "2024.02.20"]
[Round "11"]
[White "Eloist"]
[Black "Agentxya"]
[Result "1-0"]
[WhiteElo "2475"]
[BlackElo "2285"]
[TimeControl "180+1"]
[EndTime "16:04:57 PST"]
[Termination "Eloist won on time"]

1. e4 {[%clk 0:02:56.9]} 1... e5 {[%clk 0:02:59.6]} 2. Nf3 {[%clk 0:02:55.6]}
2... Nc6 {[%clk 0:02:59.8]} 3. Bc4 {[%clk 0:02:55.3]} 3... Nf6 {[%clk
0:02:59.8]} 4. d3 {[%clk 0:02:55]} 4... Bc5 {[%clk 0:02:57]} 5. O-O {[%clk
0:02:54]} 5... d5 {[%clk 0:02:48.7]} 6. exd5 {[%clk 0:02:53.4]} 6... Nxd5 {[%clk
0:02:49.6]} 7. Re1 {[%clk 0:02:53.4]} 7... O-O {[%clk 0:02:41.4]} 8. Nxe5 {[%clk
0:02:38.1]} 8... Nxe5 {[%clk 0:02:42.3]} 9. Rxe5 {[%clk 0:02:37.8]} 9... c6
{[%clk 0:02:42.9]} 10. Nd2 {[%clk 0:02:11.4]} 10... Bd6 {[%clk 0:02:07.9]} 11.
Re1 {[%clk 0:02:07.3]} 11... Qh4 {[%clk 0:01:24.4]} 12. Nf3 {[%clk 0:02:04.4]}
12... Qh5 {[%clk 0:01:20.9]} 13. d4 {[%clk 0:01:20.9]} 13... Bg4 {[%clk
0:00:58.9]} 14. h3 {[%clk 0:01:18.2]} 14... Bf5 {[%clk 0:00:59.3]} 15. Bd3
{[%clk 0:01:10.6]} 15... Bxd3 {[%clk 0:00:55.2]} 16. Qxd3 {[%clk 0:01:10.4]}
16... Rae8 {[%clk 0:00:50.6]} 17. Bd2 {[%clk 0:01:09.2]} 17... Nf4 {[%clk
0:00:26.7]} 18. Bxf4 {[%clk 0:01:06.3]} 18... Bxf4 {[%clk 0:00:27.6]} 19. Re4
{[%clk 0:01:03.6]} 19... Bc7 {[%clk 0:00:21.9]} 20. Rae1 {[%clk 0:01:02.9]}
20... Rxe4 {[%clk 0:00:22.2]} 21. Rxe4 {[%clk 0:00:56.3]} 21... Qg6 {[%clk
0:00:20]} 22. Qe3 {[%clk 0:00:50.9]} 22... Qd6 {[%clk 0:00:18.9]} 23. Re8 {[%clk
0:00:48.4]} 23... h6 {[%clk 0:00:14.8]} 24. c4 {[%clk 0:00:45.5]} 24... Qb4
{[%clk 0:00:11.6]} 25. Re7 {[%clk 0:00:37.4]} 25... Bd6 {[%clk 0:00:07.8]} 26.
Rd7 {[%clk 0:00:37.5]} 26... Bb8 {[%clk 0:00:05.9]} 27. Qb3 {[%clk 0:00:33.9]}
27... Qa5 {[%clk 0:00:04.3]} 28. Rxb7 {[%clk 0:00:30.9]} 28... Qf5 {[%clk
0:00:04.2]} 29. Rxb8 {[%clk 0:00:28]} 29... Qb1+ {[%clk 0:00:01.9]} 30. Kh2
{[%clk 0:00:26.9]} 30... Rxb8 {[%clk 0:00:01.6]} 31. Qxb8+ {[%clk 0:00:26.5]}
31... Kh7 {[%clk 0:00:02.5]} 32. Qb7 {[%clk 0:00:21.4]} 32... Qxa2 {[%clk
0:00:02.1]} 33. Qxf7 {[%clk 0:00:20.2]} 33... Qxb2 {[%clk 0:00:02.4]} 34. d5
{[%clk 0:00:19.3]} 34... Qxf2 {[%clk 0:00:02]} 35. dxc6 {[%clk 0:00:17.2]} 1-0